bitfinex/quotes_ETHUSD_20260209
["timestamp","ask_amount","ask_price","bid_price","bid_amount"]
[1770675555465,1.17934358,2119.9,2119.1,1.17974611]
[1770675555618,1.01648721,2119.8,2119.1,1.17974611]
[1770675555820,1.01648721,2119.7,2119.1,1.17974611]
[1770675556018,1.17934358,2119.9,2119.1,1.17974611]
[1770675556247,1.01648683,2119.8,2119.1,1.17974611]
[1770675556449,1.17935843,2119.8,2119.1,1.17974611]
[1770675556635,1.18129036,2120.0,2119.1,1.17974611]
[1770675556839,1.0162684,2119.9,2119.1,5.13905321]
[1770675557130,1.18129036,2120.0,2119.1,5.13905321]
[1770675557354,1.01628183,2119.9,2119.1,5.13905321]
[1770675557553,1.18129036,2120.0,2119.1,5.13905321]
[1770675557836,3.33323057,2120.9,2119.9,0.05631688]
[1770675558036,5.19928434,2120.9,2120.0,0.63507978]
[1770675558268,6.37803398,2120.9,2120.1,1.17918966]
[1770675558567,6.37803398,2120.9,2120.0,1.17921564]
[1770675559665,1.26549687,2120.9,2120.0,1.17921564]
[1770675559873,1.26549687,2120.9,2120.1,3.85190682]
[1770675560482,1.26549687,2120.9,2120.2,1.17913404]
[1770675562878,0.002,2120.7,2120.2,1.17913404]
[1770675563557,1.26549687,2120.6,2120.2,1.17913404]
[1770675564368,1.26549687,2120.6,2119.9,4.71718967]
[1770675565371,0.002,2120.7,2119.9,4.71718967]
[1770675565676,1.26549687,2120.6,2119.9,4.71718967]
[1770675567878,1.26549687,2120.6,2120.0,3.83495756]
[1770675568086,0.002,2120.7,2119.9,4.77350655]
[1770675568087,0.002,2120.7,2120.1,3.89127444]
[1770675568387,1.26549687,2120.6,2119.9,4.77350655]
[1770675568588,1.26549687,2120.6,2119.9,4.71718967]
[1770675569045,2.44442309,2120.6,2119.9,4.71718967]
[1770675569450,1.26549687,2120.6,2119.9,4.71718967]
[1770675569678,2.44444544,2120.6,2119.9,4.71718967]
[1770675570589,3.87496621,2120.5,2119.9,4.71718967]
[1770675570946,1.26549687,2120.4,2119.9,4.71718967]
[1770675571176,1.26549687,2120.4,2119.9,1.17930091]
[1770675571495,3.87496621,2120.3,2119.8,1.17935417]
[1770675572156,3.87496621,2120.3,2119.7,1.17937188]
[1770675572480,1.26549687,2120.2,2119.7,1.17937188]
[1770675572894,1.26549687,2120.2,2119.8,1.1793555]
[1770675573098,1.26549687,2120.1,2119.7,1.17936857]
[1770675573263,1.26549687,2120.1,2119.5,1.17952347]
[1770675574662,5.05391262,2120.6,2119.6,3.89127444]
[1770675575057,5.05391262,2120.6,2119.9,0.001]
[1770675577878,0.59036374,2120.5,2119.9,0.001]
[1770675581868,1.76934104,2120.5,2119.9,0.001]
[1770675582401,1.76934104,2120.5,2119.9,1.18030091]
[1770675583575,5.64430725,2120.5,2119.9,1.18030091]
[1770675583894,3.87496621,2120.3,2119.3,1.17962704]
[1770675584096,3.87496621,2120.3,2119.1,4.7189651]
[1770675584295,3.87496621,2120.1,2119.0,4.7191772]
[1770675586274,3.87496621,2119.9,2118.9,0.001]
[1770675588366,5.05437839,2119.7,2119.0,0.001]
[1770675588690,5.30701246,2119.8,2119.1,3.89127444]
[1770675588691,0.58936374,2119.8,2119.1,3.89127444]
[1770675588891,0.58936374,2119.7,2119.1,0.05631688]
[1770675589097,4.46432995,2120.0,2119.1,0.05631688]
[1770675590391,5.64359891,2120.0,2119.2,1.17969044]
[1770675591692,3.83385581,2119.9,2119.2,1.17969044]
[1770675592493,5.01319113,2119.9,2119.1,4.71876179]
[1770675592690,0.58936374,2119.8,2119.1,4.71876179]
[1770675593680,0.58936374,2119.7,2119.1,4.71876179]
[1770675595389,5.01319113,2119.9,2119.1,4.71876179]
[1770675595590,0.58936374,2119.8,2119.1,4.71876179]
[1770675597417,1.7687288,2119.8,2119.1,4.71876179]
[1770675598317,0.58936374,2119.7,2119.1,8.56412545]
[1770675598517,0.58936374,2119.7,2119.2,3.90168054]
[1770675598809,3.83385581,2120.1,2119.2,3.90168054]
[1770675599108,5.01307069,2120.1,2119.2,3.90168054]
[1770675599310,3.83385581,2120.1,2119.2,3.90168054]
[1770675599619,3.83385581,2120.2,2119.3,5.02499844]
[1770675600793,3.83385581,2120.2,2119.4,0.001]
[1770675601023,0.002,2119.8,2119.4,0.001]
[1770675601394,0.002,2119.8,2119.4,3.84636366]
[1770675601594,3.297,2120.4,2119.6,3.90168054]
[1770675601595,0.002,2120.4,2119.6,3.90168054]
[1770675602697,5.01489421,2120.4,2119.5,3.296]
[1770675603602,5.01489421,2120.4,2119.6,1.17946782]
[1770675604818,3.83385581,2120.3,2119.5,1.17949692]
[1770675605015,3.83385581,2120.3,2119.5,1.17951614]
[1770675605622,0.002,2120.4,2119.5,5.0248798]
[1770675606720,5.01488348,2120.4,2119.5,5.0248798]
[1770675607288,3.83585581,2120.4,2119.5,5.0248798]
[1770675608211,5.01488244,2120.4,2119.5,5.0248798]
[1770675609609,5.01488244,2120.4,2119.5,1.17951614]
[1770675609610,3.83385581,2120.3,2119.5,1.17951614]
[1770675609812,3.83385581,2120.1,2119.0,0.001]
[1770675610188,3.83385581,2120.1,2119.0,1.18080115]
[1770675610384,3.83385581,2119.9,2119.0,1.18080115]
[1770675610912,3.83385581,2119.9,2119.0,0.001]
[1770675611295,3.83385581,2119.7,2119.0,0.001]
[1770675611698,3.83385581,2119.5,2119.0,0.001]
[1770675612796,3.83385581,2119.5,2118.6,0.001]
[1770675612797,3.83385581,2119.1,2118.6,0.001]
[1770675613006,3.83385581,2118.9,2117.8,0.001]
[1770675613204,3.83385581,2118.7,2118.0,0.001]
[1770675613726,3.295,2119.0,2118.0,0.001]
[1770675613727,5.01399176,2118.4,2118.0,0.001]
[1770675613920,3.83385581,2118.4,2118.0,0.001]
[1770675614627,3.83385581,2118.4,2118.2,0.001]
[1770675615122,1.18011476,2118.5,2118.2,0.001]
[1770675615123,1.1800388,2118.6,2118.2,0.002]
[1770675616623,1.17985747,2118.9,2118.2,0.002]
[1770675616996,5.01371328,2118.9,2118.2,0.002]
[1770675617402,5.01371328,2118.9,2118.2,0.001]
[1770675617602,5.01371328,2118.9,2118.3,0.001]
[1770675617829,4.47480406,2119.0,2118.3,0.001]
[1770675618123,3.295,2119.0,2118.3,0.001]
[1770675618548,1.17964928,2119.3,2118.3,3.84636366]
[1770675618896,5.01347742,2119.4,2118.3,3.84636366]
[1770675619225,5.01347742,2119.4,2118.4,0.05631688]
[1770675619937,5.01347742,2119.4,2118.5,1.18008024]
[1770675621030,4.03210719,2119.3,2118.6,0.001]
[1770675621329,4.03210719,2119.3,2118.2,1.18124299]
[1770675621632,4.03210719,2119.3,2118.3,1.18019044]
[1770675621831,4.03210719,2119.3,2118.2,1.18121298]
[1770675622036,4.03210719,2119.1,2118.2,0.001]
[1770675622204,4.03210719,2119.0,2118.2,0.001]
[1770675623109,1.17948582,2119.6,2118.5,4.09598679]
[1770675623327,1.17948582,2119.6,2118.6,4.03966991]
[1770675624338,8.74976654,2119.7,2118.7,1.17996884]
[1770675626531,8.74976654,2119.7,2118.8,0.001]
[1770675626923,0.002,2119.5,2118.8,0.001]
[1770675629742,4.03410719,2119.5,2118.8,0.001]
[1770675632345,1.17957912,2119.4,2118.8,0.001]
[1770675633037,4.03210719,2119.3,2118.8,0.001]
[1770675633234,4.03210719,2119.3,2118.5,0.001]
[1770675634661,4.03210719,2119.1,2118.5,0.001]
[1770675635043,1.17969044,2119.2,2118.5,0.001]
[1770675636969,4.71876179,2119.3,2118.5,0.001]
[1770675637546,4.71841884,2119.4,2118.5,4.04066991]
[1770675638957,1.17969044,2119.2,2118.5,0.001]
[1770675639670,1.17969044,2119.2,2118.7,0.001]
[1770675639841,0.002,2119.1,2118.7,0.001]
[1770675640240,0.002,2119.1,2118.5,0.001]
[1770675640655,4.03410719,2119.1,2118.5,0.001]
[1770675641081,1.17980179,2119.0,2118.5,0.001]
[1770675641473,5.21190898,2119.0,2118.5,0.001]
[1770675642254,6.41000294,2119.4,2118.2,0.001]
[1770675642255,0.002,2119.5,2119.0,4.03966991]
[1770675642446,1.17921146,2120.1,2119.2,4.03966991]
[1770675642646,1.17921146,2120.1,2119.1,3.99361239]
[1770675642647,2.96154001,2120.1,2119.3,4.03966991]
[1770675643076,0.002,2120.2,2119.5,4.03966991]
[1770675643779,0.002,2120.2,2119.5,4.480711]
[1770675643981,0.002,2120.2,2119.5,4.03966991]
[1770675645347,0.002,2120.2,2119.6,1.17946782]
[1770675646450,0.002,2120.2,2119.6,5.21913773]
[1770675646655,2.96354001,2120.2,2119.7,4.03966991]
[1770675647356,0.002,2120.2,2119.8,1.17935654]
[1770675649568,0.002,2120.2,2119.7,4.03966991]
[1770675649752,2.96154001,2120.1,2119.6,1.17943254]
[1770675650155,2.96154001,2120.1,2119.4,5.13192401]
[1770675650353,2.96154001,2120.1,2119.5,1.17951783]
[1770675651783,4.14077907,2120.1,2119.5,1.17951783]
[1770675652578,0.002,2119.9,2119.5,1.17951783]
[1770675653071,2.96154001,2119.8,2119.5,1.17951783]
[1770675653780,2.96154001,2119.7,2119.4,8.42793607]
[1770675655457,0.002,2119.9,2119.4,8.42793607]
[1770675655754,2.96154001,2119.8,2119.4,8.42793607]
[1770675656956,2.96154001,2119.7,2119.4,7.24839678]
[1770675657382,2.96154001,2119.7,2119.2,4.7186578]
[1770675657565,2.96154001,2119.7,2119.3,4.47559606]
[1770675658272,2.96154001,2119.6,2119.0,0.44104109]
[1770675658482,0.002,2119.9,2119.1,5.13211929]
[1770675658483,2.96154001,2119.8,2119.1,5.13211929]
[1770675658859,2.96154001,2119.8,2119.1,3.95239678]
[1770675660400,2.96154001,2119.7,2119.1,3.95239678]
[1770675660609,0.002,2119.9,2119.2,3.95239678]
[1770675660767,0.002,2119.9,2119.4,3.95239678]
[1770675661386,0.002,2119.9,2119.4,4.00871366]
[1770675661756,0.002,2120.4,2119.9,3.95239678]
[1770675661994,0.002,2120.6,2120.2,3.95239678]
[1770675662203,0.002,2120.9,2120.2,3.95239678]
[1770675662204,1e-08,2120.9,2120.2,3.95239678]
[1770675662409,1e-08,2120.9,2120.3,5.13147521]
[1770675663983,1e-08,2120.9,2120.2,1.17912987]
[1770675664411,1e-08,2120.9,2120.0,11.96522923]
[1770675664412,1.17874488,2120.9,2120.1,4.71675838]
[1770675664712,1.17874488,2120.9,2120.1,1.17918966]
[1770675665318,4.22388772,2120.8,2119.9,1.17928731]
[1770675665612,4.22388772,2120.8,2119.7,4.4753626]
[1770675665780,4.22388772,2120.6,2119.7,4.4753626]
[1770675666411,5.40285494,2120.5,2119.7,4.47541192]
[1770675666986,5.40285494,2120.5,2119.7,3.296]
[1770675667186,5.40285494,2120.5,2119.7,4.4754076]
[1770675668115,5.40285494,2120.5,2119.7,3.296]
[1770675668116,4.22388772,2120.4,2119.7,3.296]
[1770675668411,5.40296615,2120.3,2119.7,0.001]
[1770675668718,5.40296615,2120.3,2119.5,0.001]
[1770675669298,4.22388772,2120.2,2119.5,0.001]
[1770675669500,1.17907843,2120.3,2119.5,0.001]
[1770675670009,5.40296615,2120.3,2119.5,0.001]
[1770675672228,5.2383099,2120.2,2119.6,0.05631688]
[1770675672431,4.71631372,2120.4,2119.9,0.05631688]
[1770675672432,1.17905823,2120.4,2119.9,0.05631688]
[1770675672616,4.71607778,2120.5,2119.9,0.05631688]
[1770675674211,4.71607778,2120.5,2119.7,0.05631688]
[1770675674417,8.9399655,2120.5,2119.7,0.05631688]
[1770675676306,8.9399655,2120.5,2119.6,1.1794654]
[1770675677835,4.22388772,2120.4,2119.9,0.001]
[1770675680338,5.34104057,2120.3,2119.9,0.001]
[1770675680737,4.16396214,2120.7,2119.9,0.001]
[1770675680938,4.16396214,2120.7,2119.9,4.49641655]
[1770675680939,1.18090167,2120.7,2119.9,4.49641655]
[1770675681238,4.16196214,2120.6,2118.8,4.44009967]
[1770675681407,4.16196214,2120.4,2119.3,1.17961262]
[1770675681612,5.17705348,2120.3,2119.9,0.05631688]
[1770675681815,4.16196214,2120.3,2119.9,0.05631688]
[1770675682010,1.01520764,2120.2,2119.9,0.05631688]
[1770675682209,1.17902282,2120.5,2120.2,0.05631688]
[1770675682409,1.17902282,2120.5,2120.3,0.05631688]
[1770675682614,1.17902282,2120.5,2120.0,0.05631688]
[1770675682816,1.17902282,2120.5,2120.2,0.05631688]
[1770675683236,1.17902282,2120.5,2120.0,0.05631688]
[1770675685855,1.17894558,2120.6,2120.2,0.05631688]
[1770675686041,1.18085654,2120.7,2120.2,0.05631688]
[1770675687039,1.18085654,2120.7,2119.6,1.23578017]
[1770675687040,1.17896722,2120.5,2119.6,1.23578017]
[1770675687237,4.16196214,2120.4,2119.6,1.23578017]
[1770675687625,4.16196214,2120.4,2119.6,0.05631688]
[1770675688729,1.01528681,2120.3,2119.7,0.05631688]
[1770675688924,3.295,2120.4,2119.8,0.05631688]
[1770675689167,3.295,2120.4,2120.0,0.05631688]
[1770675689168,1.17907843,2120.3,2120.0,0.05631688]
[1770675689937,1.17907843,2120.3,2120.1,0.001]
[1770675690135,5.34104057,2120.3,2119.8,0.05631688]
[1770675690567,5.34104057,2120.3,2119.9,0.001]
[1770675690866,5.34104057,2120.3,2120.0,0.05631688]
[1770675691162,5.34104057,2120.3,2119.9,0.001]
[1770675691337,1.1810684,2120.4,2120.0,0.05631688]
[1770675691534,1.1810684,2120.4,2120.2,0.05631688]
[1770675692257,1.1810684,2120.4,2120.0,0.05631688]
[1770675692427,1.1810684,2120.4,2120.2,0.05631688]
[1770675693133,1.1810684,2120.4,2120.0,0.05631688]
[1770675693460,1.1810684,2120.4,2120.2,0.05631688]
[1770675693837,4.16196214,2120.2,2119.5,0.05631688]
[1770675694036,4.16196214,2120.0,2119.7,0.05631688]
[1770675694263,1.01652713,2119.9,2119.5,0.05731688]
[1770675694558,1.01652713,2119.9,2119.7,0.05631688]
[1770675694855,4.16196214,2120.0,2119.7,0.05631688]
[1770675695258,3.295,2120.3,2119.7,0.05731688]
[1770675695259,1.01749483,2119.9,2119.7,0.05731688]
[1770675695445,1.17918966,2120.1,2119.7,0.05731688]
[1770675695637,1.01749254,2120.0,2119.7,0.05731688]
[1770675695837,1.01749254,2119.9,2119.7,0.05731688]
[1770675696038,1.17918966,2120.1,2119.7,0.05731688]
[1770675696239,1.01747062,2120.0,2119.7,0.05731688]
[1770675696440,1.17918966,2120.1,2119.7,0.05731688]
[1770675696660,1.01747225,2120.0,2119.7,0.05631688]
[1770675696965,1.17918966,2120.1,2119.7,0.05631688]
[1770675697165,1.01745158,2120.0,2119.7,0.05631688]
[1770675697338,1.17918966,2120.1,2119.7,0.05631688]
[1770675697532,1.01748182,2120.0,2119.7,0.05731688]
[1770675697747,1.17918966,2120.1,2119.9,0.05631688]
[1770675698144,1.17918966,2120.1,2119.7,0.05731688]
[1770675698343,1.17918966,2120.1,2119.9,0.05631688]
[1770675701189,1.17918966,2120.1,2119.7,0.05731688]
[1770675701352,1.17918966,2120.1,2119.9,0.05631688]
[1770675702053,1.17918966,2120.1,2119.7,0.05731688]
[1770675702253,1.17918966,2120.1,2119.9,0.05631688]
[1770675702567,1.17918966,2120.1,2119.7,0.05731688]
[1770675702773,1.17918966,2120.1,2119.9,0.001]
[1770675704768,6.41207437,2120.5,2119.9,0.001]
[1770675704769,6.41357719,2120.6,2120.0,0.05631688]
[1770675704944,2.1962341,2120.5,2120.0,0.001]
[1770675705149,4.31226673,2120.4,2120.0,0.001]
[1770675705355,1.01726673,2120.3,2119.9,0.001]
[1770675705559,4.16196214,2120.2,2119.9,0.002]
[1770675705758,4.16196214,2120.0,2119.6,0.001]
[1770675705958,4.16196214,2119.8,2119.0,1.18075593]
[1770675706161,4.31255082,2119.9,2119.1,0.001]
[1770675706162,5.17938865,2119.7,2119.1,0.001]
[1770675706353,4.16196214,2119.5,2119.1,0.001]
[1770675706556,2.19700563,2119.4,2119.1,0.001]
[1770675706740,1.17957912,2119.4,2119.1,0.001]
[1770675707369,1.17957912,2119.4,2119.0,0.001]
[1770675707571,1.17957912,2119.4,2119.1,0.001]
[1770675711984,5.73911041,2120.0,2119.4,0.05631688]
[1770675712178,8.87133585,2119.9,2119.4,0.05631688]
[1770675712378,1.01547072,2119.8,2119.4,0.05631688]
[1770675712579,4.55986513,2119.8,2119.4,0.05631688]
[1770675714685,1.17941218,2119.7,2119.4,0.05631688]
[1770675715383,1.17941218,2119.7,2119.2,0.05631688]
[1770675715561,1.17941218,2119.7,2119.3,0.002]
[1770675715764,0.002,2119.4,2119.3,0.002]
[1770675720789,0.002,2119.6,2119.3,0.001]
[1770675720990,0.002,2119.6,2119.4,0.05631688]
[1770675721992,0.002,2119.6,2119.3,0.05731688]
[1770675722295,0.002,2119.6,2119.3,1.18062362]
[1770675722467,0.003,2119.6,2119.3,0.001]
[1770675722861,4.56286513,2119.6,2119.3,0.001]
[1770675723195,4.55986513,2119.4,2119.0,0.001]
[1770675724083,1.17963478,2119.3,2119.0,0.001]
[1770675724793,5.73948149,2119.4,2119.0,0.001]
[1770675724985,0.001,2119.3,2119.0,0.001]
[1770675725472,8.01430747,2119.5,2119.1,0.05631688]
[1770675725473,4.47552544,2119.5,2119.1,0.05631688]
[1770675725680,4.47652544,2119.5,2119.1,0.05631688]
[1770675726481,4.47552544,2119.5,2119.1,0.05631688]
[1770675726765,9.0373332,2119.6,2119.0,0.05631688]
[1770675727003,1.01649211,2119.5,2118.9,0.05631688]
[1770675727202,9.0373332,2119.6,2119.1,1.17972145]
[1770675727570,4.47747447,2119.6,2119.1,1.17972145]
[1770675727763,0.002,2119.6,2119.1,1.23602523]
[1770675727969,1.18147645,2119.6,2119.3,0.001]
[1770675728204,0.002,2119.4,2119.3,0.001]
[1770675738521,4.56186513,2119.4,2119.1,1.23605816]
[1770675738727,4.55986513,2119.2,2118.7,1.17994767]
[1770675738914,1.01838278,2119.1,2118.6,1.18097991]
[1770675739113,4.55986513,2119.2,2118.6,1.24029679]
[1770675739295,2.19845234,2119.1,2118.8,0.05631688]
[1770675739626,1.01834304,2119.0,2118.8,0.05631688]
[1770675739925,1.17974893,2119.1,2118.8,0.05631688]
[1770675740096,1.01834425,2119.0,2118.8,0.05631688]
[1770675740294,1.17974893,2119.1,2118.8,0.05631688]
[1770675740492,1.01805652,2119.0,2118.8,0.05631688]
[1770675740693,1.17974893,2119.1,2118.6,0.001]
[1770675740919,1.01808657,2119.0,2118.7,0.003]
[1770675741114,1.17974893,2119.1,2118.7,0.003]
[1770675741321,1.01806357,2119.0,2118.6,0.05731688]
[1770675741509,1.17974893,2119.1,2118.7,0.003]
[1770675741710,1.01778549,2119.0,2118.7,0.003]
[1770675741908,1.17974893,2119.1,2118.7,0.003]
[1770675742100,4.62266752,2118.9,2118.5,0.05731688]
[1770675742292,2.87371825,2119.2,2118.9,0.05631688]
[1770675742497,1.01719516,2119.1,2118.9,0.05631688]
[1770675742707,1.1797357,2119.2,2118.9,0.05631688]
[1770675742900,0.002,2119.3,2119.1,0.05631688]
[1770675743114,1.18157912,2119.4,2119.1,0.05631688]
[1770675743314,1.18157912,2119.4,2119.3,0.05631688]
[1770675743499,1.18157912,2119.4,2119.1,0.05631688]
[1770675744809,1.18157912,2119.4,2118.9,0.05631688]
[1770675745128,5.80424664,2119.4,2119.1,0.05631688]
[1770675745533,5.80424664,2119.4,2118.9,0.05631688]
[1770675745827,5.80424664,2119.4,2119.1,0.05631688]
[1770675746022,5.80424664,2119.4,2119.0,0.003]
[1770675746239,5.80424664,2119.4,2119.1,0.05631688]
[1770675747301,5.80424664,2119.4,2119.0,0.003]
[1770675747625,5.80424664,2119.4,2119.1,0.05631688]
[1770675748007,5.80424664,2119.4,2119.0,0.003]
[1770675748205,5.80424664,2119.4,2119.1,0.05631688]
[1770675751730,1.18157912,2119.4,2119.3,0.05631688]
[1770675753206,1.18157912,2119.4,2119.1,0.05631688]
[1770675753409,4.62266752,2119.2,2118.8,0.001]
[1770675753604,4.62266752,2119.1,2118.8,0.001]
[1770675754233,4.62266752,2119.1,2118.9,0.05631688]
[1770675754539,1.01692412,2119.0,2118.9,0.05631688]
[1770675754719,1.01692412,2119.0,2118.8,0.001]
[1770675755038,4.62266752,2119.1,2118.8,0.001]
[1770675755039,1.01699002,2118.9,2118.8,0.001]
[1770675755233,1.17980179,2119.0,2118.8,0.001]
[1770675759926,4.72506752,2118.8,2117.7,0.001]
[1770675760124,4.62266752,2117.9,2117.0,0.05631688]
[1770675760443,4.62266752,2117.7,2117.1,0.05831688]
[1770675760657,5.63777239,2117.6,2116.9,0.05831688]
[1770675760822,5.63783678,2117.5,2117.0,0.05631688]
[1770675761024,7.91966752,2117.4,2116.9,0.002]
[1770675761223,4.62266752,2117.2,2116.7,0.05631688]
[1770675761437,4.62266752,2117.2,2116.8,0.002]
[1770675761817,1.18086061,2117.1,2116.8,0.002]
[1770675762233,5.80352813,2117.1,2116.6,0.1111313]
[1770675762451,3.297,2117.0,2116.7,0.05831688]
[1770675763236,4.62266752,2116.9,2116.4,0.05631688]
[1770675763437,3.297,2117.0,2116.6,0.05631688]
[1770675764037,4.47795864,2117.0,2116.8,0.05631688]
[1770675764437,3.297,2117.0,2116.8,0.05631688]
[1770675764629,1.18089736,2117.1,2116.8,0.05631688]
[1770675764827,3.298,2117.0,2116.8,0.05731688]
[1770675765052,1.18089736,2117.1,2117.0,0.05631688]
[1770675765258,1.18089736,2117.1,2116.8,0.001]
[1770675765570,1.18040218,2118.0,2117.5,0.05631688]
[1770675765721,3.298,2117.8,2117.5,0.05631688]
[1770675766124,1.18040218,2118.0,2117.5,0.05631688]
[1770675766348,3.298,2118.0,2117.7,0.05631688]
[1770675766530,3.298,2118.0,2117.5,0.05631688]
[1770675766729,3.298,2118.0,2117.7,0.05631688]
[1770675768236,4.72010781,2118.6,2118.1,0.05631688]
[1770675768237,5.80269206,2118.6,2118.1,0.05631688]
[1770675768641,4.47801321,2118.7,2118.3,0.05631688]
[1770675768952,4.62466752,2118.9,2118.3,0.05631688]
[1770675768953,0.002,2118.9,2118.7,0.05631688]
[1770675770257,4.68021345,2118.9,2118.3,0.05631688]
[1770675770425,0.002,2118.9,2118.5,0.05631688]
[1770675771120,0.002,2118.9,2118.7,0.05631688]
[1770675776145,0.002,2118.9,2118.3,0.05631688]
[1770675776329,0.002,2118.9,2118.6,0.05631688]
[1770675776533,0.002,2118.9,2116.7,0.05631688]
[1770675776534,4.67821345,2117.3,2116.7,0.05631688]
[1770675776766,0.68477891,2117.4,2116.8,0.05631688]
[1770675777062,4.67821345,2117.8,2116.9,0.002]
[1770675777063,4.67821345,2117.6,2116.9,0.002]
[1770675777258,5.68726334,2117.5,2116.7,0.002]
[1770675777459,5.68726334,2117.4,2116.3,0.05631688]
[1770675777661,4.67821345,2117.1,2116.1,0.05631688]
[1770675777865,4.67821345,2116.9,2116.1,0.05631688]
[1770675778067,5.68726334,2116.8,2115.9,0.05631688]
[1770675778265,4.67821345,2116.8,2115.9,0.05631688]
[1770675778434,4.67821345,2116.8,2116.1,0.05631688]
[1770675779266,6.86743823,2116.7,2116.1,0.05631688]
[1770675779560,4.67821345,2116.6,2116.1,0.05631688]
[1770675779747,4.67821345,2116.6,2115.9,0.05631688]
[1770675779953,4.67821345,2116.6,2116.1,0.05631688]
[1770675780344,4.67821345,2116.6,2115.9,0.05631688]
[1770675780538,4.67821345,2116.6,2116.1,0.05631688]
[1770675780940,1.26146259,2117.1,2116.7,0.05631688]
[1770675781152,1.26146259,2117.1,2116.5,0.05631688]
[1770675781153,4.72344244,2117.2,2116.9,0.05631688]
[1770675781353,2.44205847,2117.6,2117.3,0.05631688]
[1770675781564,1.18059588,2117.6,2117.5,0.05631688]
[1770675781766,1.18059588,2117.6,2116.7,0.05631688]
[1770675781943,1.18059588,2117.6,2117.3,0.05631688]
[1770675782143,1.18059588,2117.6,2117.2,0.05631688]
[1770675782354,5.68496544,2117.5,2116.6,0.05631688]
[1770675782534,5.68496544,2117.4,2116.8,0.05631688]
[1770675782740,5.68496544,2117.3,2116.8,0.05631688]
[1770675783062,5.68496544,2117.3,2116.4,0.05631688]
[1770675783063,4.67821345,2117.3,2116.4,0.05631688]
[1770675783271,4.67821345,2117.3,2116.7,0.05631688]
[1770675783272,6.86582845,2117.2,2116.7,0.05631688]
[1770675783458,1.18080483,2117.2,2116.9,0.05631688]
[1770675783772,1.18080483,2117.2,2116.7,0.05631688]
[1770675783961,1.18080483,2117.2,2116.8,0.05631688]
[1770675784155,1.18080483,2117.2,2116.5,0.05631688]
[1770675784341,1.18080483,2117.2,2116.8,0.05631688]
[1770675784940,1.18080483,2117.2,2117.0,0.05631688]
[1770675785164,1.18063754,2117.5,2116.8,0.05631688]
[1770675785354,1.00687672,2117.4,2117.0,0.05631688]
[1770675785561,1.18063754,2117.5,2116.8,0.05631688]
[1770675785758,1.00688828,2117.4,2116.8,0.05631688]
[1770675786059,5.85885099,2117.5,2116.8,0.05631688]
[1770675786249,1.00697403,2117.4,2116.8,0.05631688]
[1770675786450,5.85885099,2117.5,2116.8,0.05631688]
[1770675786762,1.00703796,2117.4,2116.7,0.05631688]
[1770675786972,1.00703796,2117.3,2116.9,0.05631688]
[1770675787171,5.85885099,2117.5,2116.7,0.05631688]
[1770675787346,1.18074906,2117.3,2116.7,0.05631688]
[1770675787542,1.18074906,2117.3,2116.9,0.05631688]
[1770675788147,1.18074906,2117.3,2116.7,0.05631688]
[1770675788351,4.67821345,2117.1,2116.1,0.05631688]
[1770675788549,4.67821345,2116.8,2116.1,0.05631688]
[1770675788751,5.68578857,2116.7,2116.2,0.05631688]
[1770675788960,1.00784791,2116.6,2116.2,0.05631688]
[1770675789160,4.67821345,2116.7,2116.1,0.05631688]
[1770675789365,1.18119536,2116.5,2116.1,0.05631688]
[1770675789568,4.67821345,2116.4,2114.7,0.1024]
[1770675789878,1.26046526,2115.8,2115.0,0.05631688]
[1770675790078,1.0083722,2115.7,2115.0,0.05631688]
[1770675790268,3.3,2115.8,2114.8,0.05631688]
[1770675790473,1.00704282,2115.7,2114.7,1.23849387]
[1770675790779,3.3,2115.8,2115.1,0.05631688]
[1770675791075,1.00707368,2115.7,2115.1,0.05631688]
[1770675791308,3.3,2115.8,2114.8,0.05631688]
[1770675791309,7.97821345,2115.8,2114.8,0.05631688]
[1770675791489,1.18147448,2116.0,2115.6,0.05631688]
[1770675791787,1.18147448,2116.0,2115.3,0.05631688]
[1770675791788,1.18147448,2116.0,2115.5,0.05631688]
[1770675792451,1.18147448,2116.0,2115.7,0.05631688]
[1770675793473,4.72482104,2116.5,2115.7,0.05631688]
[1770675793669,1.00469245,2116.4,2115.7,0.05631688]
[1770675793978,1.00469245,2116.3,2115.8,0.05631688]
[1770675794180,9.40303449,2116.5,2115.5,0.05631688]
[1770675794392,1.0045136,2116.4,2115.8,0.05631688]
[1770675794554,9.40303449,2116.5,2116.0,0.05631688]
[1770675794987,9.40303449,2116.5,2115.8,0.05631688]
[1770675795188,4.72482104,2116.5,2116.0,0.05631688]
[1770675795587,1.18119536,2116.6,2116.0,0.05631688]
[1770675796171,1.18119536,2116.6,2115.8,0.05631688]
[1770675796358,1.18119536,2116.6,2116.0,0.05631688]
[1770675796563,1.18119536,2116.6,2115.8,0.05631688]
[1770675796778,1.18119536,2116.6,2116.0,0.05631688]
[1770675798190,1.18119536,2116.6,2115.8,0.05631688]
[1770675798989,1.18119536,2116.6,2116.0,0.05631688]
[1770675799194,1.18119536,2116.6,2116.2,0.05631688]
[1770675799402,1.18119536,2116.6,2116.0,0.05631688]
[1770675799700,1.18119536,2116.6,2116.2,0.05631688]
[1770675800078,1.18119536,2116.6,2116.0,0.05631688]
[1770675800278,4.72450834,2116.7,2116.2,0.05631688]
[1770675802088,1.18108376,2116.7,2116.0,1.23775652]
[1770675802305,1.18108376,2116.7,2116.2,0.05631688]
[1770675803667,1.00783769,2116.6,2116.2,0.05631688]
[1770675803871,1.18108376,2116.7,2116.2,0.05631688]
[1770675804089,1.00785741,2116.6,2116.2,0.05631688]
[1770675804290,1.0095261,2116.5,2116.4,0.001]
[1770675804764,1.0095261,2116.5,2115.8,0.05631688]
[1770675804967,4.68740975,2116.1,2115.0,0.05631688]
[1770675805168,1.26255874,2115.9,2115.1,0.05631688]
[1770675805371,1.26255874,2115.7,2115.2,0.05631688]
[1770675805583,1.00960457,2115.6,2115.2,0.05631688]
[1770675805891,1.00960457,2115.5,2115.2,0.05631688]
[1770675806097,1.26255874,2115.7,2115.2,0.05631688]
[1770675806286,2.19328906,2115.6,2115.2,0.05631688]
[1770675806484,1.01157183,2115.5,2115.4,0.05631688]
[1770675806677,1.01157183,2115.5,2115.2,1.23823476]
[1770675806879,1.01157183,2115.4,2115.2,1.23823476]
[1770675807067,2.44421079,2115.7,2115.2,1.23823476]
[1770675807264,1.01385038,2115.6,2115.4,0.05631688]
[1770675807479,1.01385038,2115.5,2115.4,0.05631688]
[1770675808982,1.01385038,2115.5,2115.2,0.05631688]
[1770675809287,1.18164593,2115.7,2115.4,0.05631688]
[1770675809606,1.01365265,2115.6,2115.4,0.05631688]
[1770675809786,1.01365265,2115.5,2115.2,0.05631688]